fUSD/lending_fUSD_20240514
["ID","MTS","AMOUNT","RATE_DAILY","PERIOD"]
[327021230,1715720549067,530.99991017,0.00045753,30]
[327021231,1715720549191,152.00738122,0.00046639,30]
[327021232,1715720549590,530.99991017,0.0004617,30]
[327021233,1715720549720,156.20522311,0.00045524,30]
[327021234,1715720549784,150.52119395,0.00043246,30]
[327021235,1715720550068,530.99991017,0.00046915,30]
[327021236,1715720550250,156.20522311,0.00050497,60]
[327021237,1715720550304,150.52119395,0.00045112,30]
[327021238,1715720550482,153.8748706,0.0004763,30]
[327021239,1715720550583,530.99991017,0.00047252,30]
[327021240,1715720550663,354.25127931,0.00042008,30]
[327021241,1715720550767,156.20522311,0.0005146,60]
[327021242,1715720550794,150.52119395,0.00046946,30]
[327021243,1715720551050,154.46457135,0.00040213,30]
[327021244,1715720551095,530.99991017,0.00048048,30]
[327021245,1715720551154,354.25127931,0.00042225,30]
[327021246,1715720551268,156.20522311,0.00051543,60]
[327021247,1715720551305,150.52119395,0.00047268,30]
[327021248,1715720551559,154.46457135,0.00049568,30]
[327021249,1715720551616,530.99991027,0.00050271,60]
[327021250,1715720551659,354.25127931,0.00043146,30]
[327021251,1715720551871,150.52119395,0.00047789,30]
[327021252,1715720552167,354.25127931,0.00045441,30]
[327021253,1715720552468,150.52119395,0.00048238,30]
[327021254,1715720552577,153.21424556,0.00049781,30]
[327021255,1715720552852,354.25127931,0.00046021,30]
[327021256,1715720552975,150.52119395,0.0004866,30]
[327021257,1715720553001,151.01182748,0.00040564,30]
[327021258,1715720553336,354.25127931,0.00046351,30]
[327021259,1715720553471,168.24161347,0.00044346,30]
[327021260,1715720553499,150.52119395,0.00049937,30]
[327021261,1715720553527,151.01182748,0.00043471,30]
[327021262,1715720553554,158.93982304,0.0004692,30]
[327021263,1715720553844,354.25127931,0.00046378,30]
[327021264,1715720553961,150.52119395,0.00050126,60]
[327021265,1715720553990,151.01182748,0.00048024,30]
[327021266,1715720554021,168.24161348,0.00048966,30]
[327021267,1715720554054,158.93982304,0.00049332,30]
[327021268,1715720554350,354.25127931,0.00046921,30]
[327021269,1715720554497,151.01182748,0.00048162,30]
[327021270,1715720554671,158.93982304,0.00049948,30]
[327021271,1715720554845,354.25127931,0.0004935,30]
[327021272,1715720554979,150.52119396,0.00051277,60]
[327021273,1715720555166,151.01182748,0.0004969,30]
[327021274,1715720555350,354.25127931,0.00049687,30]
[327021275,1715720555652,151.01182748,0.00049902,30]
[327021276,1715720555843,354.25127931,0.00051185,60]
[327021277,1715720556164,151.01182748,0.00051947,60]
[327021278,1715720556371,354.25127931,0.00051433,60]
[327021279,1715720556965,354.25127939,0.00051857,60]
[327021280,1715720557484,157.75352919,0.00040368,30]
[327021281,1715720557979,157.75352919,0.00041336,30]
[327021282,1715720558512,157.75352919,0.00042034,30]
[327021283,1715720559025,157.75352919,0.00044453,30]
[327021284,1715720559528,157.75352919,0.00044496,30]
[327021285,1715720560040,157.75352919,0.0004533,30]
[327021286,1715720560554,157.75352919,0.00045546,30]
[327021287,1715720561075,157.75352919,0.00045683,30]
[327021288,1715720561777,157.75352919,0.00046753,30]
[327021289,1715720562323,157.75352919,0.00047824,30]
[327021290,1715720562391,217.90207356,0.00041379,30]
[327021291,1715720562857,157.75352919,0.0004999,30]
[327021292,1715720563036,217.90207356,0.00043976,30]
[327021293,1715720563553,217.90207356,0.00044477,30]
[327021294,1715720563930,157.75352919,0.00050039,60]
[327021295,1715720564053,217.90207356,0.00046533,30]
[327021296,1715720564178,158.82756836,0.00042117,30]
[327021297,1715720564605,217.90207356,0.00046766,30]
[327021298,1715720564697,158.82756836,0.00043051,30]
[327021299,1715720564956,157.75352919,0.0005117,60]
[327021300,1715720565103,217.90207356,0.00047349,30]
[327021301,1715720565267,158.82756836,0.00044587,30]
[327021302,1715720565471,157.75352947,0.00051579,60]
[327021303,1715720565604,217.90207356,0.00047361,30]
[327021304,1715720565793,158.82756836,0.00047959,30]
[327021305,1715720566082,217.90207356,0.00048764,30]
[327021306,1715720566281,158.82756836,0.0004942,30]
[327021307,1715720566586,217.90207356,0.00049313,30]
[327021308,1715720567090,217.90207356,0.00049889,30]
[327021309,1715720567338,158.82756836,0.00050342,60]
[327021310,1715720567854,158.8275686,0.00051414,60]
[327021311,1715720568131,217.90207382,0.00051238,60]
[327021312,1715720601331,353.0,0.000519,30]
[327021314,1715720630610,2000.0,0.00052,82]
[327021315,1715720630961,2303.661349,0.0005201,82]
[327021316,1715720653219,1673.744785,0.00044,44]
[327021317,1715720657872,213.0,0.000488,39]
[327021318,1715720658580,213.0,0.000493,39]
[327021319,1715720659365,213.0,0.000498,40]
[327021320,1715720660012,213.0,0.000503,40]
[327021321,1715720660719,213.0,0.000508,40]
[327021322,1715720662049,213.0,0.000513,40]
[327021323,1715720662828,213.0,0.000518,40]
[327021324,1715720727370,394.042137,0.00051781,30]
[327021325,1715720747545,1000.0,0.000519,30]
[327021326,1715720769696,200.0,0.00052,30]
[327021327,1715720771685,200.0,0.00052,30]
[327021328,1715720839628,153.12970745,0.00047259,30]
[327021329,1715720840462,153.12970745,0.00049545,30]
[327021330,1715720840538,151.11268684,0.00046638,30]
[327021331,1715720840639,170.92843816,0.00046947,30]
[327021332,1715720841055,151.11268684,0.00049001,30]
[327021333,1715720841659,156.6057241,0.00040155,30]
[327021334,1715720842168,156.6057241,0.00041512,30]
[327021335,1715720842669,156.6057241,0.00044897,30]
[327021336,1715720843627,156.6057241,0.00051269,60]
[327021337,1715720843964,156.6057241,0.00051469,60]
[327021338,1715720844855,336.2999431,0.00040214,30]
[327021339,1715720844890,150.52119395,0.00040528,30]
[327021340,1715720845006,172.52923443,0.00045313,30]
[327021341,1715720845377,336.2999431,0.00040689,30]
[327021342,1715720845877,336.2999431,0.00041515,30]
[327021343,1715720845930,150.52119395,0.00050104,60]
[327021344,1715720846377,336.2999431,0.00041844,30]
[327021345,1715720846876,336.2999431,0.00042187,30]
[327021346,1715720847416,336.2999431,0.00042512,30]
[327021347,1715720847456,152.00738122,0.00047666,30]
[327021348,1715720847520,153.8748706,0.00042422,30]
[327021349,1715720847940,336.2999431,0.00042823,30]
[327021350,1715720848043,153.8748706,0.00050766,60]
[327021351,1715720848400,200.7423916,0.00040707,30]
[327021352,1715720848463,336.2999431,0.00043761,30]
[327021353,1715720848580,157.75352919,0.00042797,30]
[327021354,1715720848762,167.91596974,0.00047216,30]
[327021355,1715720848925,200.7423916,0.00042356,30]
[327021356,1715720848999,336.2999431,0.00043853,30]
[327021357,1715720849077,157.75352919,0.00043424,30]
[327021358,1715720849432,200.7423916,0.00042951,30]
[327021359,1715720849498,336.2999431,0.00044902,30]
[327021360,1715720849591,157.75352919,0.00046257,30]
[327021361,1715720850102,200.7423916,0.00043907,30]
[327021362,1715720850140,336.2999431,0.00046694,30]
[327021363,1715720850168,157.75352919,0.00046413,30]
[327021364,1715720850448,200.7423916,0.00044184,30]
[327021365,1715720850480,153.99615671,0.00051309,60]
[327021366,1715720850511,336.2999431,0.0004712,30]
[327021367,1715720850646,157.75352919,0.0004685,30]
[327021368,1715720850954,200.7423916,0.00044268,30]
[327021369,1715720851056,163.73836524,0.00040227,30]
[327021370,1715720851313,158.93982304,0.00041963,30]
[327021371,1715720851456,200.7423916,0.00046852,30]
[327021372,1715720851554,336.2999431,0.00047138,30]
[327021373,1715720851661,157.75352919,0.00047342,30]
[327021374,1715720851718,168.24161348,0.00049387,30]
[327021375,1715720851975,200.7423916,0.00046928,30]
[327021376,1715720852070,336.2999431,0.00047487,30]
[327021377,1715720852099,163.73836524,0.0004384,30]
[327021378,1715720852153,157.75352919,0.00048404,30]
[327021379,1715720852353,156.20522311,0.00041276,30]
[327021380,1715720852486,200.7423916,0.00047069,30]
[327021381,1715720852583,336.2999431,0.00048222,30]
[327021382,1715720852670,157.75352919,0.00048742,30]
[327021383,1715720852916,156.20522311,0.00043195,30]
[327021384,1715720852963,200.7423916,0.00047892,30]
[327021385,1715720853088,336.2999431,0.00049911,30]
[327021386,1715720853447,200.7423916,0.00048065,30]
[327021387,1715720853926,200.7423916,0.00049968,30]
[327021388,1715720854139,336.2999431,0.00050153,60]
[327021389,1715720854435,155.28,0.00030027,30]
[327021390,1715720854465,200.74239187,0.00050057,60]
[327021391,1715720854804,336.29994333,0.00051798,60]
[327021392,1715720854836,152.20975301,0.0004012,30]
[327021393,1715720854863,155.28,0.00051836,90]
[327021394,1715720855784,152.20975301,0.00041803,30]
[327021395,1715720856299,152.20975301,0.00044648,30]
[327021396,1715720856806,152.20975301,0.00044937,30]
[327021397,1715720857341,152.20975301,0.00046241,30]
[327021398,1715720857850,152.20975301,0.00046414,30]
[327021399,1715720858282,153.3384962,0.00040799,30]
[327021400,1715720858358,152.20975301,0.00046469,30]
[327021401,1715720858776,153.3384962,0.0004084,30]
[327021402,1715720859289,153.3384962,0.00040989,30]
[327021403,1715720859427,152.20975301,0.00047019,30]
[327021404,1715720859795,153.3384962,0.00041511,30]
[327021405,1715720859936,152.20975301,0.00047132,30]
[327021406,1715720860507,153.3384962,0.00042658,30]
[327021407,1715720860540,152.20975301,0.0004748,30]
[327021408,1715720860878,153.3384962,0.00043003,30]
[327021409,1715720860962,152.20975301,0.00047943,30]
[327021410,1715720861362,153.3384962,0.00044227,30]
[327021411,1715720861549,152.20975301,0.00048725,30]
[327021412,1715720861958,153.3384962,0.00044766,30]
[327021413,1715720862074,152.20975305,0.00050063,60]
[327021414,1715720862456,153.3384962,0.00045726,30]
[327021415,1715720862955,153.3384962,0.00046616,30]
[327021416,1715720863473,153.3384962,0.00046764,30]
[327021417,1715720864005,153.3384962,0.00047791,30]
[327021418,1715720864467,153.33849644,0.00048922,30]
[327021419,1715720902151,353.0,0.00052,30]
[327021422,1715721024974,354.637923,0.00052055,30]
[327021423,1715721026265,385.0,0.00051906,120]
[327021424,1715721031500,-162.50319315,0.0001041,2]
[327021425,1715721031510,-513.31,0.00010411,2]
[327021426,1715721031519,-200.0,0.00011,2]
[327021427,1715721031530,-150.0,0.00011068,2]
[327021428,1715721031542,-300.0,0.00011068,2]
[327021429,1715721031552,-1345.6478216,0.00011069,2]
[327021430,1715721031563,-2418.1409,0.00011069,2]
[327021431,1715721031753,-648.450036,0.00011069,2]
[327021432,1715721031764,-5465.3012424,0.00011069,2]
[327021433,1715721031774,-250.0,0.00011096,2]
[327021434,1715721031783,-713.38899044,0.00011105,2]
[327021443,1715721036090,1327.88,0.00033151,120]
[327021444,1715721036316,1327.88,0.00044384,120]
[327021451,1715721037603,-319.077,0.00011105,2]
[327021452,1715721037678,-467.53400956,0.00011105,2]
[327021453,1715721037688,-338.27,0.00011121,2]
[327021454,1715721037698,-2436.04,0.00011216,2]
[327021455,1715721037708,-4000.0,0.00011224,2]
[327021456,1715721037717,-662.34,0.00011224,2]
[327021457,1715721037726,-626.21,0.00011224,2]
[327021458,1715721037737,-179.84,0.00011233,2]
[327021459,1715721037747,-3080.5,0.00011241,2]
[327021460,1715721037756,-499.99,0.00011258,2]
[327021461,1715721037765,-154.79,0.00011335,2]
[327021462,1715721037775,-154.79,0.00011388,2]
[327021463,1715721037784,-154.79,0.00011442,2]
[327021464,1715721037793,-154.79,0.00011496,2]
[327021465,1715721037803,-154.79,0.00011549,2]
[327021466,1715721037812,-154.79,0.00011603,2]
[327021467,1715721038020,-176.56,0.00011631,2]
[327021468,1715721038030,-154.79,0.00011657,2]
[327021469,1715721038039,-154.79,0.0001171,2]
[327021470,1715721038049,-155.12,0.00011752,2]
[327021471,1715721038058,-155.12,0.00011756,2]
[327021472,1715721038068,-155.12,0.00011761,2]
[327021473,1715721038077,-154.79,0.00011764,2]
[327021474,1715721038086,-155.12,0.00011765,2]
[327021475,1715721038096,-155.12,0.0001177,2]
[327021476,1715721038107,-155.12,0.00011774,2]
[327021477,1715721038116,-155.12,0.00011779,2]
[327021478,1715721038126,-155.12,0.00011783,2]
[327021479,1715721038135,-155.12,0.00011788,2]
[327021480,1715721038144,-155.12,0.00011792,2]
[327021481,1715721038154,-155.12,0.00011797,2]
[327021482,1715721038165,-155.12,0.00011801,2]
[327021483,1715721038176,-155.12,0.00011806,2]
[327021484,1715721038186,-155.12,0.0001181,2]
[327021485,1715721038196,-154.79,0.00011818,2]
[327021486,1715721038207,-191.75,0.00011858,2]
[327021487,1715721038216,-154.79,0.00011872,2]
[327021488,1715721038225,-154.79,0.00011925,2]
[327021489,1715721038235,-10932.27936531,0.000124,2]
[327021490,1715721038245,-153.02,0.00012524,2]
[327021491,1715721038255,-153.02,0.00012533,2]
[327021492,1715721038264,-552.43,0.00012533,2]
[327021493,1715721038273,-153.02,0.00012542,2]
[327021494,1715721038284,-153.02,0.00012551,2]
[327021495,1715721038293,-153.02,0.0001256,2]
[327021496,1715721038303,-153.02,0.00012569,2]
[327021497,1715721038312,-153.02,0.00012578,2]
[327021498,1715721038322,-153.02,0.00012587,2]
[327021499,1715721038332,-1000.0,0.000126,2]
[327021500,1715721038341,-179.84,0.00012637,2]
[327021501,1715721038351,-17875.9358,0.00012706,2]
[327021502,1715721038360,-1953.5447,0.00012706,2]
[327021503,1715721038370,-1000.0,0.00012776,2]
[327021504,1715721038380,-367.9388,0.000128,2]
[327021505,1715721038391,-133440.2232,0.00012806,2]
[327021506,1715721038400,-224.80611485,0.00012818,2]
[327021507,1715721038411,-224.80611484,0.00012839,2]
[327021508,1715721038421,-224.80611484,0.00012859,2]
[327021509,1715721038431,-2036.57,0.00012876,2]
[327021510,1715721038443,-2036.57,0.00012876,2]
[327021511,1715721038453,-2036.57,0.00012876,2]
[327021512,1715721038467,-2036.57,0.00012876,2]
[327021513,1715721038476,-2036.57,0.00012876,2]
[327021514,1715721038486,-914.83815846,0.00012876,2]
[327021515,1715721038503,-1121.73184154,0.00012876,2]
[327021516,1715721038513,-2418.12,0.00012876,2]
[327021517,1715721038523,-2418.12,0.00012876,2]
[327021518,1715721038533,-2418.12,0.00012876,2]
[327021519,1715721038545,-2418.12,0.00012876,2]
[327021520,1715721038555,-2418.12,0.00012876,2]
[327021521,1715721038565,-2418.12,0.00012876,2]
[327021522,1715721038574,-224.80611484,0.0001288,2]
[327021523,1715721038584,-978.18796677,0.00012899,2]
[327021524,1715721038593,-2036.57,0.00012899,2]
[327021525,1715721038602,-2036.57,0.00012899,2]
[327021526,1715721038611,-2418.12,0.00012899,2]
[327021527,1715721038620,-2418.12,0.00012899,2]
[327021528,1715721038629,-500.0,0.00012899,2]
[327021529,1715721038638,-500.0,0.00012899,2]
[327021530,1715721038647,-7500.0,0.000129,2]
[327021531,1715721038656,-145430.95012155,0.000129,2]
[327021532,1715721039647,-1451.8542977,0.000129,2]
[327021559,1715721042811,-820.16,0.00012701,2]
[327021560,1715721042820,-2404.0910777,0.000129,2]
[327021561,1715721042829,-323.3249418,0.000129,2]
[327021562,1715721042839,-212.19434734,0.000129,2]
[327021563,1715721042848,-365.5169,0.000129,2]
[327021564,1715721042858,-224.80611484,0.000129,2]
[327021565,1715721042867,-2275.1535178,0.000129,2]
[327021566,1715721042877,-388.52937643,0.000129,2]
[327021567,1715721042886,-5056.29615016,0.000129,2]
[327021568,1715721042895,-402.57455118,0.000129,2]
[327021569,1715721042905,-978.18796677,0.000129,2]
[327021570,1715721042914,-1680.991,0.00012906,2]
[327021571,1715721042923,-1395.0,0.00012906,2]
[327021572,1715721042932,-476.34447457,0.00012906,2]
[327021573,1715721042951,-749.65552543,0.00012906,2]
[327021574,1715721042960,-543.0,0.00012906,2]
[327021575,1715721042970,-1261.0,0.00012906,2]
[327021576,1715721042979,-154.806,0.00012906,2]
[327021577,1715721042988,-214.635,0.00012906,2]
[327021578,1715721042998,-1646.0,0.00012906,2]
[327021579,1715721043009,-2433.0,0.00012906,2]
[327021580,1715721043019,-448.756,0.00012906,2]
[327021581,1715721043033,-1159.342,0.00012906,2]
[327021582,1715721043043,-219.0,0.00012906,2]
[327021583,1715721043053,-3156.0,0.00012906,2]
[327021584,1715721043062,-292.357,0.00012906,2]
[327021585,1715721043072,-5749.0,0.00012906,2]
[327021586,1715721043081,-392.744,0.00012906,2]
[327021587,1715721043091,-475.84151,0.00012918,2]
[327021588,1715721043100,-4228.035911,0.00012918,2]
[327021589,1715721043110,-183.05942095,0.0001299,2]
[327021590,1715721043119,-151.65,0.0001299,2]
[327021591,1715721043129,-151.65,0.0001299,2]
[327021592,1715721043138,-151.65,0.0001299,2]
[327021594,1715721043148,-151.65,0.0001299,2]
[327021595,1715721043158,-151.65,0.0001299,2]
[327021596,1715721043168,-151.65,0.0001299,2]
[327021597,1715721043177,-151.65,0.0001299,2]
[327021598,1715721043187,-151.65,0.0001299,2]
[327021599,1715721043197,-151.65,0.0001299,2]
[327021600,1715721043207,-151.65,0.0001299,2]
[327021601,1715721043217,-151.65,0.0001299,2]
[327021602,1715721043227,-151.65,0.0001299,2]
[327021603,1715721043238,-151.65,0.0001299,2]
[327021604,1715721043248,-151.65,0.0001299,2]
[327021605,1715721043258,-151.65,0.0001299,2]
[327021606,1715721043269,-151.65,0.0001299,2]
[327021607,1715721043279,-151.65,0.0001299,2]
[327021608,1715721043287,-151.65,0.0001299,2]
[327021609,1715721043297,-151.65,0.0001299,2]
[327021610,1715721043306,-151.65,0.0001299,2]
[327021611,1715721043315,-151.65,0.0001299,2]
[327021612,1715721043324,-151.65,0.0001299,2]
[327021613,1715721043333,-151.65,0.0001299,2]
[327021614,1715721043344,-151.65,0.0001299,2]
[327021615,1715721043354,-151.65,0.0001299,2]
[327021616,1715721043363,-151.65,0.0001299,2]
[327021617,1715721043374,-151.65,0.0001299,2]
[327021618,1715721043383,-151.65,0.0001299,2]
[327021619,1715721043393,-151.65,0.0001299,2]
[327021620,1715721043403,-151.65,0.0001299,2]
[327021621,1715721043413,-151.65,0.0001299,2]
[327021622,1715721043422,-151.65,0.0001299,2]
[327021623,1715721043432,-151.65,0.0001299,2]
[327021624,1715721043441,-151.65,0.0001299,2]
[327021625,1715721043451,-151.65,0.0001299,2]
[327021626,1715721043460,-151.65,0.0001299,2]
[327021627,1715721043474,-151.65,0.0001299,2]
[327021628,1715721043483,-151.65,0.0001299,2]
[327021629,1715721043492,-151.65,0.0001299,2]
[327021630,1715721043503,-151.65,0.0001299,2]
[327021631,1715721043514,-151.65,0.0001299,2]
[327021632,1715721043524,-151.65,0.0001299,2]
[327021633,1715721043533,-151.65,0.0001299,2]
[327021634,1715721043543,-151.65,0.0001299,2]
[327021635,1715721043552,-151.65,0.0001299,2]
[327021636,1715721043562,-151.65,0.0001299,2]
[327021637,1715721043571,-151.65,0.0001299,2]
[327021638,1715721043581,-151.65,0.0001299,2]
[327021639,1715721043590,-151.65,0.0001299,2]
[327021640,1715721043599,-151.65,0.0001299,2]
[327021641,1715721043609,-151.65,0.0001299,2]
[327021642,1715721043617,-151.65,0.0001299,2]
[327021643,1715721043627,-157.051506,0.00012996,2]
[327021644,1715721043637,-157.051506,0.00012996,2]
[327021645,1715721043647,-157.051506,0.00012996,2]
[327021646,1715721043656,-157.051506,0.00012996,2]
[327021647,1715721043666,-157.051506,0.00012997,2]
[327021648,1715721043675,-157.051506,0.00012997,2]
[327021649,1715721043684,-157.051506,0.00012997,2]
[327021650,1715721043694,-157.051506,0.00012997,2]
[327021651,1715721043703,-157.051506,0.00012997,2]
[327021652,1715721043713,-157.051506,0.00012997,2]
[327021653,1715721043723,-155.03631472,0.00012998,2]
[327021654,1715721043732,-3005.28742185,0.00012998,2]
[327021655,1715721043742,-156.663,0.00012998,2]
[327021656,1715721043751,-446.04412158,0.00012998,2]
[327021657,1715721043763,-522.28932815,0.00012998,2]
[327021658,1715721043775,-194.8533955,0.00012998,2]
[327021659,1715721043784,-207.23404543,0.00012998,2]
[327021660,1715721043795,-302.2712118,0.00012998,2]
[327021661,1715721043805,-155.0,0.00012998,2]
[327021662,1715721043815,-157.051506,0.00012998,2]
[327021663,1715721043826,-157.051506,0.00012998,2]
[327021664,1715721043836,-157.051506,0.00012998,2]
[327021665,1715721043846,-157.051506,0.00012998,2]
[327021666,1715721043855,-157.051506,0.00012998,2]
[327021667,1715721043866,-157.051506,0.00012998,2]
[327021668,1715721043876,-405.63530923,0.00012998,2]
[327021669,1715721043886,-3633.265,0.00012998,2]
[327021670,1715721043896,-3627.877,0.00012999,2]
[327021671,1715721043906,-1227.24709092,0.00012999,3]
[327021672,1715721043915,-32604.0,0.00012999,2]
[327021673,1715721043924,-2036.57,0.00012999,2]
[327021674,1715721043935,-2036.57,0.00012999,2]
[327021675,1715721043944,-2036.57,0.00012999,2]
[327021676,1715721043953,-2036.57,0.00012999,2]
[327021677,1715721043963,-2036.57,0.00012999,2]
[327021678,1715721043974,-2036.57,0.00012999,2]
[327021679,1715721043984,-2036.57,0.00012999,2]
[327021680,1715721043993,-2036.57,0.00012999,2]
[327021681,1715721044003,-2036.57,0.00012999,2]
[327021682,1715721044014,-2036.57,0.00012999,2]
[327021683,1715721044023,-2036.57,0.00012999,2]
[327021684,1715721044032,-2036.57,0.00012999,2]
[327021685,1715721044041,-2036.57,0.00012999,2]
[327021686,1715721044051,-2036.57,0.00012999,2]
[327021687,1715721044060,-2036.57,0.00012999,2]
[327021688,1715721044070,-2036.73614311,0.00012999,2]
[327021689,1715721044079,-2418.12,0.00012999,2]
[327021690,1715721044088,-2418.12,0.00012999,2]
[327021691,1715721044098,-2418.12,0.00012999,2]
[327021692,1715721044107,-2418.12,0.00012999,2]
[327021693,1715721044116,-2418.12,0.00012999,2]
[327021694,1715721044126,-2418.12,0.00012999,2]
[327021695,1715721044135,-2418.12,0.00012999,2]
[327021696,1715721044144,-2418.12,0.00012999,2]
[327021697,1715721044154,-2418.12,0.00012999,2]
[327021698,1715721044164,-2418.12,0.00012999,2]
[327021699,1715721044174,-2418.12,0.00012999,2]
[327021700,1715721044185,-2418.12,0.00012999,2]
[327021701,1715721044196,-2418.12,0.00012999,2]
[327021702,1715721044206,-2418.12,0.00012999,2]
[327021703,1715721044215,-2418.12,0.00012999,2]
[327021704,1715721044225,-2418.20276527,0.00012999,2]
[327021705,1715721044234,-500.0,0.00012999,2]
[327021706,1715721044243,-500.0,0.00012999,2]
[327021707,1715721044252,-500.0,0.00012999,2]
[327021708,1715721044263,-500.0,0.00012999,2]
[327021709,1715721044272,-500.0,0.00012999,2]
[327021710,1715721044281,-500.0,0.00012999,2]
[327021711,1715721044290,-500.0,0.00012999,2]
[327021712,1715721044299,-500.0,0.00012999,2]
[327021713,1715721044308,-500.0,0.00012999,2]
[327021714,1715721044317,-428.40331563,0.00012999,2]
[327021715,1715721044327,-534.0,0.00013,2]
[327021716,1715721044336,-452062.3522476,0.00013,2]
[327021717,1715721044345,-1396953.30837291,0.00013,2]
[327021719,1715721045736,-1001.67180543,0.000129,2]
[327021720,1715721045746,-311.85804175,0.00012998,2]
[327021721,1715721045755,-4867.8112728,0.00013,2]
[327021722,1715721047080,1000.0,0.00052,30]
[327021723,1715721070729,193.54905,0.00052,30]
[327021724,1715721071641,200.0,0.00052,30]
[327021725,1715721073320,3030.58350156,0.00052054,120]
[327021726,1715721086232,17714.0,0.000501,120]
[327021727,1715721086612,5682.0,0.000486,120]
[327021728,1715721097267,223.0,0.00052,30]
[327021729,1715721137481,157.15908436,0.00048393,30]
[327021730,1715721137562,156.6057241,0.00041355,30]
[327021731,1715721138436,151.11268684,0.00047181,30]
[327021732,1715721138905,156.6057241,0.00048871,30]
[327021733,1715721139647,156.6057241,0.00049142,30]
[327021734,1715721140190,156.6057241,0.00049987,30]
[327021735,1715721140377,153.99615671,0.00050597,60]
[327021736,1715721140619,153.8748706,0.00046494,30]
[327021737,1715721141013,170.00178118,0.00044371,30]
[327021738,1715721141149,153.8748706,0.00048726,30]
[327021739,1715721142286,155.21535835,0.0004072,30]
[327021740,1715721142788,155.21535835,0.00042557,30]
[327021741,1715721143298,155.21535835,0.00042829,30]
[327021742,1715721144371,155.21535835,0.00042975,30]
[327021743,1715721144936,155.21535835,0.00043403,30]
[327021744,1715721145271,150.52119395,0.00040072,30]
[327021745,1715721145450,155.21535835,0.00043912,30]
[327021746,1715721145480,155.11912078,0.00042956,30]
[327021747,1715721145785,150.52119395,0.00044642,30]
[327021748,1715721145999,155.11912078,0.00043256,30]
[327021749,1715721146054,155.21535835,0.00044434,30]
[327021750,1715721146321,150.52119395,0.00046395,30]
[327021751,1715721146362,155.49398153,0.00051512,60]
[327021752,1715721146511,155.21535835,0.00044667,30]
[327021753,1715721146867,152.00738122,0.00045171,30]
[327021754,1715721146994,155.11912078,0.00044586,30]
[327021755,1715721147024,155.21535835,0.00044736,30]
[327021756,1715721147516,155.11912078,0.00045661,30]
[327021757,1715721147548,155.21535835,0.00045306,30]
[327021758,1715721148005,155.11912078,0.00046892,30]
[327021759,1715721148044,155.21535835,0.0004911,30]
[327021760,1715721148656,155.11912078,0.0004985,30]
[327021761,1715721148691,155.21535835,0.00049909,30]
[327021762,1715721149041,155.11912078,0.00050438,60]
[327021763,1715721149070,155.21535835,0.0005056,60]
[327021764,1715721149565,155.11912082,0.00050764,60]
[327021765,1715721149598,155.21535835,0.00050761,60]
[327021766,1715721150100,155.21535835,0.0005082,60]
[327021767,1715721150305,168.24161348,0.0004819,30]
[327021768,1715721150591,155.21535835,0.00050825,60]
[327021769,1715721151135,155.21535845,0.00051352,60]
[327021770,1715721151319,157.75352919,0.00040169,30]
[327021771,1715721151824,157.75352919,0.0004383,30]
[327021772,1715721152092,152.20975301,0.00042496,30]
[327021773,1715721152596,152.20975301,0.00048476,30]
[327021774,1715721153109,152.20975301,0.00049708,30]